[Event "Titled Tuesday Blitz October 31 Early 2023"]
[White "Goltseva, Ekaterina"]
[Black "Mendez Fortes, Eduardo Jesus"]
[WhiteFideId "24173770"]
[BlackFideId "3502376"]
[WhiteElo "2545"]
[BlackElo "2676"]
[Result "0-1"]
[Round "9"]
[TimeControl "180+1"]
[Date "2023.10.31"]
[WhiteClock "0:00:05"]
[BlackClock "0:00:08"]
[Board "52"]

1. Nf3 {[%clk 0:02:47]}  d5 {[%clk 0:02:59]} 2. d4 {[%clk 0:02:46]}  Nf6 {[%clk 0:03:00]} 3. c4 {[%clk 0:02:42]}  e6 {[%clk 0:03:00]} 4. Nc3 {[%clk 0:02:39]}  Bb4 {[%clk 0:02:59]} 5. g3 {[%clk 0:02:34]}  dxc4 {[%clk 0:02:55]} 6. Bg2 {[%clk 0:02:32]}  Nc6 {[%clk 0:02:55]} 7. O-O {[%clk 0:02:32]}  O-O {[%clk 0:02:55]} 8. a3 {[%clk 0:02:30]}  Bxc3 {[%clk 0:02:49]} 9. bxc3 {[%clk 0:02:29]}  Na5 {[%clk 0:02:50]} 10. Ne5 {[%clk 0:02:22]}  c6 {[%clk 0:02:49]} 11. Bg5 {[%clk 0:02:16]}  h6 {[%clk 0:02:45]} 12. Bxf6 {[%clk 0:01:59]}  gxf6 {[%clk 0:02:45]} 13. Ng4 {[%clk 0:01:56]}  h5 {[%clk 0:02:45]} 14. Ne3 {[%clk 0:01:53]}  f5 {[%clk 0:02:35]} 15. Bf3 {[%clk 0:01:49]}  h4 {[%clk 0:02:23]} 16. Ng2 {[%clk 0:01:46]}  hxg3 {[%clk 0:02:22]} 17. hxg3 {[%clk 0:01:43]}  Kg7 {[%clk 0:02:21]} 18. Nf4 {[%clk 0:01:43]}  Rh8 {[%clk 0:02:12]} 19. Qd2 {[%clk 0:01:39]}  Nb3 {[%clk 0:02:08]} 20. Qc2 {[%clk 0:01:36]}  Nxa1 {[%clk 0:02:08]} 21. Rxa1 {[%clk 0:01:37]}  Bd7 {[%clk 0:02:07]} 22. Rb1 {[%clk 0:01:35]}  b5 {[%clk 0:02:05]} 23. Qd2 {[%clk 0:01:35]}  Kf8 {[%clk 0:01:39]} 24. Qe3 {[%clk 0:01:25]}  Qf6 {[%clk 0:01:37]} 25. Nh5 {[%clk 0:01:02]}  Qh6 {[%clk 0:01:33]} 26. Qe5 {[%clk 0:00:59]}  Rc8 {[%clk 0:01:12]} 27. Nf6 {[%clk 0:00:49]}  Ke7 {[%clk 0:01:02]} 28. d5 {[%clk 0:00:32]}  cxd5 {[%clk 0:00:46]} 29. Nxd5+ {[%clk 0:00:31]}  Kd8 {[%clk 0:00:26]} 30. Nf6 {[%clk 0:00:25]}  Ke7 {[%clk 0:00:21]} 31. Rd1 {[%clk 0:00:24]}  Rhd8 {[%clk 0:00:13]} 32. Nd5+ {[%clk 0:00:14]}  Kf8 {[%clk 0:00:13]} 33. Qd6+ {[%clk 0:00:11]}  Kg7 {[%clk 0:00:12]} 34. Ne7 {[%clk 0:00:02]}  Be8 {[%clk 0:00:10]} 35. Qxd8 {[%clk 0:00:02]}  Rxd8 {[%clk 0:00:10]} 36. Rxd8 {[%clk 0:00:03]}  Kf8 {[%clk 0:00:08]} 37. Nc6 {[%clk 0:00:02]}  Qc1+ {[%clk 0:00:08]} 38. Kg2 {[%clk 0:00:02]}  Qxc3 {[%clk 0:00:09]} 39. Nxa7 {[%clk 0:00:02]}  Qxa3 {[%clk 0:00:08]} 40. Bc6 {[%clk 0:00:02]}  Qxa7 {[%clk 0:00:08]} 41. Rxe8+ {[%clk 0:00:02]}  Kg7 {[%clk 0:00:09]} 42. Bf3 {[%clk 0:00:01]}  c3 {[%clk 0:00:08]} 43. Ra8 {[%clk 0:00:01]}  Qc7 {[%clk 0:00:08]} 44. Ra1 {[%clk 0:00:01]}  c2 {[%clk 0:00:08]} 45. Rc1 {[%clk 0:00:02]}  b4 {[%clk 0:00:09]} 46. e4 {[%clk 0:00:02]}  b3 {[%clk 0:00:09]} 47. exf5 {[%clk 0:00:03]}  b2 {[%clk 0:00:09]} 48. f6+ {[%clk 0:00:04]}  Kxf6 {[%clk 0:00:09]} 49. Rxc2 {[%clk 0:00:05]}  Qxc2 {[%clk 0:00:09]} 50. g4 {[%clk 0:00:06]}  b1=Q {[%clk 0:00:10]} 51. g5+ {[%clk 0:00:07]}  Kxg5 {[%clk 0:00:10]} 52. Kg3 {[%clk 0:00:05]}  Qg1+ {[%clk 0:00:08]} 53. Bg2 {[%clk 0:00:05]}  Qd3+ {[%clk 0:00:08]} 54. f3 {[%clk 0:00:05]}  Qd6+ {[%clk 0:00:08]} 55. Kh3 {[%clk 0:00:05]}  Qgh2# {[%clk 0:00:08]} 0-1


[Site "https://www.chess.com"]

[Event "Titled Tuesday Blitz October 31 Early 2023"]
[White "BashirovKemal"]
[Black "Yaksin, Oleg"]
[BlackFideId "24105880"]
[WhiteElo "2666"]
[BlackElo "2538"]
[Result "1-0"]
[Round "9"]
[TimeControl "180+1"]
[Date "2023.10.31"]
[WhiteClock "0:00:14"]
[BlackClock "0:00:00"]
[Board "54"]

1. d4 {[%clk 0:03:00]}  Nf6 {[%clk 0:02:57]} 2. c4 {[%clk 0:03:01]}  e6 {[%clk 0:02:55]} 3. Nf3 {[%clk 0:03:00]}  b6 {[%clk 0:02:54]} 4. g3 {[%clk 0:03:00]}  Bb7 {[%clk 0:02:54]} 5. Bg2 {[%clk 0:02:56]}  Be7 {[%clk 0:02:54]} 6. O-O {[%clk 0:02:48]}  O-O {[%clk 0:02:55]} 7. Nc3 {[%clk 0:02:44]}  Ne4 {[%clk 0:02:55]} 8. Bd2 {[%clk 0:02:44]}  Bf6 {[%clk 0:02:51]} 9. Be1 {[%clk 0:02:44]}  g6 {[%clk 0:02:45]} 10. Rc1 {[%clk 0:02:39]}  d6 {[%clk 0:02:42]} 11. h4 {[%clk 0:02:39]}  Nd7 {[%clk 0:02:40]} 12. Qc2 {[%clk 0:02:34]}  Nxc3 {[%clk 0:02:39]} 13. Bxc3 {[%clk 0:02:35]}  Qe7 {[%clk 0:02:31]} 14. Rfd1 {[%clk 0:02:26]}  a5 {[%clk 0:02:24]} 15. e4 {[%clk 0:02:12]}  Bg7 {[%clk 0:02:21]} 16. Bd2 {[%clk 0:02:01]}  Rae8 {[%clk 0:02:15]} 17. Re1 {[%clk 0:02:01]}  e5 {[%clk 0:02:13]} 18. d5 {[%clk 0:01:57]}  h6 {[%clk 0:02:12]} 19. Bh3 {[%clk 0:01:54]}  Nc5 {[%clk 0:02:11]} 20. a3 {[%clk 0:01:52]}  a4 {[%clk 0:02:07]} 21. Be3 {[%clk 0:01:50]}  f5 {[%clk 0:01:55]} 22. exf5 {[%clk 0:01:43]}  Bc8 {[%clk 0:01:52]} 23. f6 {[%clk 0:01:32]}  Qxf6 {[%clk 0:01:50]} 24. Bxc8 {[%clk 0:01:32]}  Rxc8 {[%clk 0:01:24]} 25. Nd2 {[%clk 0:01:25]}  Ra8 {[%clk 0:01:23]} 26. Ne4 {[%clk 0:01:19]}  Nxe4 {[%clk 0:01:23]} 27. Qxe4 {[%clk 0:01:20]}  Qf5 {[%clk 0:01:22]} 28. Qg2 {[%clk 0:01:19]}  e4 {[%clk 0:01:19]} 29. Re2 {[%clk 0:01:16]}  Rae8 {[%clk 0:01:18]} 30. Rce1 {[%clk 0:01:12]}  Rf7 {[%clk 0:01:15]} 31. g4 {[%clk 0:01:08]}  Qf3 {[%clk 0:01:02]} 32. g5 {[%clk 0:01:08]}  h5 {[%clk 0:01:01]} 33. Kh2 {[%clk 0:01:04]}  Qf5 {[%clk 0:00:57]} 34. Kg1 {[%clk 0:01:04]}  Rfe7 {[%clk 0:00:54]} 35. Rd1 {[%clk 0:01:02]}  Rf8 {[%clk 0:00:51]} 36. Rde1 {[%clk 0:00:58]}  Rfe8 {[%clk 0:00:45]} 37. Rd1 {[%clk 0:00:56]}  Qf3 {[%clk 0:00:41]} 38. Rdd2 {[%clk 0:00:53]}  Be5 {[%clk 0:00:38]} 39. Kh1 {[%clk 0:00:48]}  Rf8 {[%clk 0:00:38]} 40. Kg1 {[%clk 0:00:48]}  Ref7 {[%clk 0:00:35]} 41. Kh1 {[%clk 0:00:45]}  Bf4 {[%clk 0:00:29]} 42. Kg1 {[%clk 0:00:42]}  Bxe3 {[%clk 0:00:20]} 43. fxe3 {[%clk 0:00:43]}  Qf1+ {[%clk 0:00:14]} 44. Qxf1 {[%clk 0:00:39]}  Rxf1+ {[%clk 0:00:15]} 45. Kg2 {[%clk 0:00:40]}  Rc1 {[%clk 0:00:13]} 46. Rd4 {[%clk 0:00:37]}  Rff1 {[%clk 0:00:09]} 47. Rxe4 {[%clk 0:00:34]}  Rg1+ {[%clk 0:00:10]} 48. Kf3 {[%clk 0:00:32]}  Rgf1+ {[%clk 0:00:10]} 49. Rf2 {[%clk 0:00:31]}  Rxf2+ {[%clk 0:00:10]} 50. Kxf2 {[%clk 0:00:31]}  Rc2+ {[%clk 0:00:10]} 51. Kf3 {[%clk 0:00:31]}  Kf7 {[%clk 0:00:10]} 52. Rf4+ {[%clk 0:00:28]}  Kg7 {[%clk 0:00:10]} 53. Re4 {[%clk 0:00:20]}  Kf7 {[%clk 0:00:10]} 54. Rf4+ {[%clk 0:00:20]}  Kg7 {[%clk 0:00:10]} 55. c5 {[%clk 0:00:21]}  bxc5 {[%clk 0:00:04]} 56. Rxa4 {[%clk 0:00:21]}  Rxb2 {[%clk 0:00:03]} 57. Ra7 {[%clk 0:00:21]}  Ra2 {[%clk 0:00:02]} 58. Rxc7+ {[%clk 0:00:21]}  Kf8 {[%clk 0:00:02]} 59. Rd7 {[%clk 0:00:19]}  Rxa3 {[%clk 0:00:02]} 60. Rxd6 {[%clk 0:00:20]}  Kf7 {[%clk 0:00:03]} 61. Rf6+ {[%clk 0:00:19]}  Kg7 {[%clk 0:00:02]} 62. Rc6 {[%clk 0:00:20]}  Ra4 {[%clk 0:00:02]} 63. Rxc5 {[%clk 0:00:19]}  Rxh4 {[%clk 0:00:02]} 64. Rc7+ {[%clk 0:00:19]}  Kf8 {[%clk 0:00:03]} 65. d6 {[%clk 0:00:19]}  Rh1 {[%clk 0:00:02]} 66. Rh7 {[%clk 0:00:15]}  Rd1 {[%clk 0:00:02]} 67. d7 {[%clk 0:00:15]}  Rd5 {[%clk 0:00:01]} 68. e4 {[%clk 0:00:14]}  Rd4 {[%clk 0:00:01]} 69. e5 {[%clk 0:00:14]}  h4 {[%clk 0:00:00]} 70. e6 {[%clk 0:00:14]} 1-0


[Site "https://www.chess.com"]

[Event "Titled Tuesday Blitz October 31 Early 2023"]
[White "Sharapov, Evgeny"]
[Black "El_Matador12"]
[WhiteFideId "14103133"]
[WhiteElo "2666"]
[BlackElo "2531"]
[Result "0-1"]
[Round "9"]
[TimeControl "180+1"]
[Date "2023.10.31"]
[WhiteClock "0:00:04"]
[BlackClock "0:00:29"]
[Board "55"]

1. e4 {[%clk 0:02:59]}  c6 {[%clk 0:02:56]} 2. d4 {[%clk 0:02:59]}  d5 {[%clk 0:02:56]} 3. e5 {[%clk 0:02:59]}  c5 {[%clk 0:02:54]} 4. Nf3 {[%clk 0:02:59]}  Nc6 {[%clk 0:02:55]} 5. c4 {[%clk 0:02:59]}  cxd4 {[%clk 0:02:52]} 6. Nxd4 {[%clk 0:02:59]}  e6 {[%clk 0:02:47]} 7. cxd5 {[%clk 0:02:56]}  Qxd5 {[%clk 0:02:47]} 8. Nxc6 {[%clk 0:02:52]}  Qxd1+ {[%clk 0:02:45]} 9. Kxd1 {[%clk 0:02:52]}  bxc6 {[%clk 0:02:46]} 10. Nc3 {[%clk 0:02:52]}  Ne7 {[%clk 0:02:43]} 11. Kc2 {[%clk 0:02:43]}  Nd5 {[%clk 0:02:43]} 12. a3 {[%clk 0:02:37]}  Bc5 {[%clk 0:02:41]} 13. Ne4 {[%clk 0:02:21]}  Be7 {[%clk 0:02:41]} 14. Bc4 {[%clk 0:02:16]}  O-O {[%clk 0:02:40]} 15. Bd2 {[%clk 0:02:12]}  a5 {[%clk 0:02:39]} 16. Rac1 {[%clk 0:02:10]}  Rd8 {[%clk 0:02:28]} 17. Rhd1 {[%clk 0:02:08]}  Ba6 {[%clk 0:02:19]} 18. Bxa6 {[%clk 0:02:05]}  Rxa6 {[%clk 0:02:19]} 19. Bg5 {[%clk 0:02:04]}  Bxg5 {[%clk 0:02:15]} 20. Nxg5 {[%clk 0:02:03]}  Rb8 {[%clk 0:02:13]} 21. Ne4 {[%clk 0:01:57]}  Rab6 {[%clk 0:02:12]} 22. Rb1 {[%clk 0:01:57]}  Kf8 {[%clk 0:02:05]} 23. g3 {[%clk 0:01:54]}  Ke7 {[%clk 0:02:05]} 24. Rd3 {[%clk 0:01:51]}  Rb5 {[%clk 0:01:57]} 25. f4 {[%clk 0:01:48]}  h5 {[%clk 0:01:56]} 26. Nc3 {[%clk 0:01:34]}  Rc5 {[%clk 0:01:54]} 27. Kd2 {[%clk 0:01:29]}  Rc4 {[%clk 0:01:50]} 28. b3 {[%clk 0:01:21]}  Nxc3 {[%clk 0:01:21]} 29. Rxc3 {[%clk 0:01:20]}  Rd8+ {[%clk 0:01:22]} 30. Rd3 {[%clk 0:01:17]}  Rcd4 {[%clk 0:01:09]} 31. Rxd4 {[%clk 0:01:17]}  Rxd4+ {[%clk 0:01:10]} 32. Ke3 {[%clk 0:01:17]}  Rd5 {[%clk 0:01:04]} 33. Rc1 {[%clk 0:01:16]}  Kd7 {[%clk 0:01:04]} 34. Rc4 {[%clk 0:01:12]}  Kc7 {[%clk 0:01:03]} 35. b4 {[%clk 0:01:00]}  axb4 {[%clk 0:01:01]} 36. Rxb4 {[%clk 0:01:00]}  Ra5 {[%clk 0:01:01]} 37. a4 {[%clk 0:00:59]}  c5 {[%clk 0:01:01]} 38. Rc4 {[%clk 0:00:52]}  Kc6 {[%clk 0:01:01]} 39. Ke4 {[%clk 0:00:51]}  g6 {[%clk 0:00:58]} 40. h3 {[%clk 0:00:51]}  Ra8 {[%clk 0:00:57]} 41. g4 {[%clk 0:00:51]}  hxg4 {[%clk 0:00:56]} 42. hxg4 {[%clk 0:00:52]}  Rb8 {[%clk 0:00:56]} 43. f5 {[%clk 0:00:48]}  g5 {[%clk 0:00:50]} 44. a5 {[%clk 0:00:36]}  Rb4 {[%clk 0:00:33]} 45. Kd3 {[%clk 0:00:29]}  Rb3+ {[%clk 0:00:31]} 46. Kc2 {[%clk 0:00:24]}  Ra3 {[%clk 0:00:31]} 47. Rc3 {[%clk 0:00:16]}  Rxc3+ {[%clk 0:00:26]} 48. Kxc3 {[%clk 0:00:16]}  Kb5 {[%clk 0:00:27]} 49. Kb3 {[%clk 0:00:07]}  Kxa5 {[%clk 0:00:27]} 50. Kc4 {[%clk 0:00:08]}  Kb6 {[%clk 0:00:27]} 51. fxe6 {[%clk 0:00:06]}  fxe6 {[%clk 0:00:27]} 52. Kc3 {[%clk 0:00:06]}  Kb5 {[%clk 0:00:28]} 53. Kb3 {[%clk 0:00:07]}  c4+ {[%clk 0:00:28]} 54. Kc3 {[%clk 0:00:04]}  Kc5 {[%clk 0:00:29]} 0-1


[Site "https://www.chess.com"]

[Event "Titled Tuesday Blitz October 31 Early 2023"]
[White "Demin, Vladimir"]
[Black "Wizard_97"]
[WhiteFideId "4167457"]
[WhiteElo "2526"]
[BlackElo "2619"]
[Result "1-0"]
[Round "9"]
[TimeControl "180+1"]
[Date "2023.10.31"]
[WhiteClock "0:00:28"]
[BlackClock "0:00:32"]
[Board "56"]

1. d4 {[%clk 0:02:36]}  Nf6 {[%clk 0:02:58]} 2. Nc3 {[%clk 0:02:36]}  d5 {[%clk 0:02:58]} 3. Bf4 {[%clk 0:02:36]}  c5 {[%clk 0:02:56]} 4. e4 {[%clk 0:02:35]}  Nxe4 {[%clk 0:02:52]} 5. Nxe4 {[%clk 0:02:34]}  dxe4 {[%clk 0:02:53]} 6. dxc5 {[%clk 0:02:35]}  Qa5+ {[%clk 0:02:54]} 7. c3 {[%clk 0:02:34]}  Qxc5 {[%clk 0:02:55]} 8. Qa4+ {[%clk 0:02:34]}  Nc6 {[%clk 0:02:55]} 9. Qxe4 {[%clk 0:02:34]}  g6 {[%clk 0:02:56]} 10. Nf3 {[%clk 0:02:34]}  Bg7 {[%clk 0:02:56]} 11. Qe3 {[%clk 0:02:34]}  Qa5 {[%clk 0:02:49]} 12. Bc4 {[%clk 0:02:29]}  O-O {[%clk 0:02:48]} 13. O-O {[%clk 0:02:28]}  Bf5 {[%clk 0:02:28]} 14. Rfe1 {[%clk 0:02:18]}  Rad8 {[%clk 0:02:23]} 15. Bh6 {[%clk 0:02:15]}  e6 {[%clk 0:01:59]} 16. h3 {[%clk 0:02:04]}  b5 {[%clk 0:01:37]} 17. Bxg7 {[%clk 0:01:58]}  Kxg7 {[%clk 0:01:36]} 18. Ne5 {[%clk 0:01:53]}  Ne7 {[%clk 0:01:05]} 19. Qc5 {[%clk 0:01:37]}  Rfe8 {[%clk 0:00:55]} 20. Qxb5 {[%clk 0:01:33]}  Qc7 {[%clk 0:00:55]} 21. Re2 {[%clk 0:01:03]}  Nd5 {[%clk 0:00:43]} 22. Qc6 {[%clk 0:00:55]}  Qxc6 {[%clk 0:00:39]} 23. Nxc6 {[%clk 0:00:56]}  Rc8 {[%clk 0:00:39]} 24. Bxd5 {[%clk 0:00:55]}  exd5 {[%clk 0:00:39]} 25. Rxe8 {[%clk 0:00:55]}  Rxe8 {[%clk 0:00:40]} 26. Nd4 {[%clk 0:00:56]}  Bd3 {[%clk 0:00:39]} 27. Rd1 {[%clk 0:00:48]}  Ba6 {[%clk 0:00:38]} 28. f3 {[%clk 0:00:42]}  Rb8 {[%clk 0:00:35]} 29. Rd2 {[%clk 0:00:40]}  Rc8 {[%clk 0:00:34]} 30. Kf2 {[%clk 0:00:40]}  Kf6 {[%clk 0:00:35]} 31. Rd1 {[%clk 0:00:37]}  Ke5 {[%clk 0:00:35]} 32. a4 {[%clk 0:00:32]}  Rb8 {[%clk 0:00:32]} 33. Nc6+ {[%clk 0:00:28]} 1-0


[Site "https://www.chess.com"]

[Event "Titled Tuesday Blitz October 31 Early 2023"]
[White "Pinheiro, Iung Alicio de O."]
[Black "Lehtosaari, Mauri"]
[WhiteFideId "2104350"]
[BlackFideId "501999"]
[WhiteElo "2617"]
[BlackElo "2514"]
[Result "1-0"]
[Round "9"]
[TimeControl "180+1"]
[Date "2023.10.31"]
[WhiteClock "0:01:05"]
[BlackClock "0:01:25"]
[Board "57"]

1. d4 {[%clk 0:03:00]}  d5 {[%clk 0:02:54]} 2. Nf3 {[%clk 0:03:00]}  Nf6 {[%clk 0:02:54]} 3. Bg5 {[%clk 0:03:01]}  Ne4 {[%clk 0:02:51]} 4. Bh4 {[%clk 0:03:00]}  c6 {[%clk 0:02:37]} 5. Nbd2 {[%clk 0:02:57]}  Bf5 {[%clk 0:02:35]} 6. e3 {[%clk 0:02:55]}  e6 {[%clk 0:02:33]} 7. Bd3 {[%clk 0:02:53]}  Nxd2 {[%clk 0:02:33]} 8. Bxd8 {[%clk 0:02:52]}  Nxf3+ {[%clk 0:02:33]} 9. Qxf3 {[%clk 0:02:41]}  Kxd8 {[%clk 0:02:30]} 10. Bxf5 {[%clk 0:02:41]}  exf5 {[%clk 0:02:31]} 11. Qxf5 {[%clk 0:02:41]}  f6 {[%clk 0:02:30]} 12. O-O {[%clk 0:02:36]}  Be7 {[%clk 0:02:25]} 13. b4 {[%clk 0:02:25]}  Nd7 {[%clk 0:02:19]} 14. b5 {[%clk 0:02:23]}  Rc8 {[%clk 0:02:18]} 15. bxc6 {[%clk 0:02:19]}  bxc6 {[%clk 0:02:19]} 16. Rab1 {[%clk 0:02:19]}  Nb6 {[%clk 0:02:19]} 17. a4 {[%clk 0:02:15]}  Kc7 {[%clk 0:02:13]} 18. a5 {[%clk 0:02:10]}  Nc4 {[%clk 0:02:13]} 19. Qe6 {[%clk 0:02:04]}  Rhe8 {[%clk 0:02:03]} 20. a6 {[%clk 0:01:59]}  Nb6 {[%clk 0:02:02]} 21. Qf7 {[%clk 0:01:49]}  g5 {[%clk 0:02:00]} 22. Rfc1 {[%clk 0:01:49]}  Kd6 {[%clk 0:01:56]} 23. e4 {[%clk 0:01:31]}  dxe4 {[%clk 0:01:53]} 24. c4 {[%clk 0:01:31]}  Kd7 {[%clk 0:01:49]} 25. d5 {[%clk 0:01:17]}  cxd5 {[%clk 0:01:44]} 26. cxd5 {[%clk 0:01:16]}  Rxc1+ {[%clk 0:01:45]} 27. Rxc1 {[%clk 0:01:14]}  Rd8 {[%clk 0:01:25]} 28. Rc6 {[%clk 0:01:05]} 1-0


[Site "https://www.chess.com"]

[Event "Titled Tuesday Blitz October 31 Early 2023"]
[White "JuniorJumper"]
[Black "MFatigue"]
[WhiteElo "2610"]
[BlackElo "2502"]
[Result "1-0"]
[Round "9"]
[TimeControl "180+1"]
[Date "2023.10.31"]
[WhiteClock "0:00:12"]
[BlackClock "0:00:12"]
[Board "58"]

1. d4 {[%clk 0:02:55]}  d5 {[%clk 0:02:59]} 2. Bf4 {[%clk 0:02:55]}  Nf6 {[%clk 0:03:00]} 3. e3 {[%clk 0:02:55]}  e6 {[%clk 0:03:00]} 4. Nd2 {[%clk 0:02:55]}  c5 {[%clk 0:03:00]} 5. c3 {[%clk 0:02:55]}  Bd6 {[%clk 0:03:01]} 6. Bxd6 {[%clk 0:02:55]}  Qxd6 {[%clk 0:03:01]} 7. Bd3 {[%clk 0:02:55]}  Nc6 {[%clk 0:03:01]} 8. f4 {[%clk 0:02:56]}  b6 {[%clk 0:02:54]} 9. a3 {[%clk 0:02:54]}  Bb7 {[%clk 0:02:54]} 10. Ngf3 {[%clk 0:02:54]}  O-O-O {[%clk 0:02:44]} 11. Ne5 {[%clk 0:02:54]}  Rhf8 {[%clk 0:02:40]} 12. Qa4 {[%clk 0:02:46]}  Kb8 {[%clk 0:02:40]} 13. Bb5 {[%clk 0:02:43]}  Rc8 {[%clk 0:02:40]} 14. Ndf3 {[%clk 0:02:32]}  Ne7 {[%clk 0:02:33]} 15. Ng5 {[%clk 0:02:05]}  Ne4 {[%clk 0:02:33]} 16. Nxe4 {[%clk 0:02:02]}  dxe4 {[%clk 0:02:30]} 17. Nd7+ {[%clk 0:02:02]}  Ka8 {[%clk 0:02:30]} 18. Nxf8 {[%clk 0:02:03]}  Rxf8 {[%clk 0:02:31]} 19. O-O-O {[%clk 0:02:01]}  Nf5 {[%clk 0:02:29]} 20. Rhe1 {[%clk 0:01:55]}  cxd4 {[%clk 0:02:26]} 21. Ba6 {[%clk 0:01:52]}  Bc6 {[%clk 0:02:16]} 22. Bb5 {[%clk 0:01:46]}  Bb7 {[%clk 0:02:08]} 23. g4 {[%clk 0:01:41]}  Nh4 {[%clk 0:01:05]} 24. Rxd4 {[%clk 0:01:38]}  Qc5 {[%clk 0:01:06]} 25. Red1 {[%clk 0:01:33]}  a5 {[%clk 0:01:05]} 26. Rd8+ {[%clk 0:01:06]}  Rxd8 {[%clk 0:01:02]} 27. Rxd8+ {[%clk 0:01:07]}  Ka7 {[%clk 0:01:03]} 28. Qc4 {[%clk 0:00:25]}  Qxe3+ {[%clk 0:01:03]} 29. Kb1 {[%clk 0:00:26]}  Qc5 {[%clk 0:00:29]} 30. Qxc5 {[%clk 0:00:21]}  bxc5 {[%clk 0:00:30]} 31. Rd7 {[%clk 0:00:22]}  Kb6 {[%clk 0:00:31]} 32. Rxf7 {[%clk 0:00:20]}  Ng2 {[%clk 0:00:24]} 33. Bf1 {[%clk 0:00:14]}  e3 {[%clk 0:00:17]} 34. Be2 {[%clk 0:00:12]}  g6 {[%clk 0:00:15]} 35. Kc1 {[%clk 0:00:07]}  Ba6 {[%clk 0:00:13]} 36. Bxa6 {[%clk 0:00:06]}  Kxa6 {[%clk 0:00:14]} 37. Kd1 {[%clk 0:00:07]}  Kb5 {[%clk 0:00:14]} 38. Ke2 {[%clk 0:00:08]}  Kc4 {[%clk 0:00:14]} 39. Kf3 {[%clk 0:00:08]}  Kd3 {[%clk 0:00:11]} 40. Rd7+ {[%clk 0:00:08]}  Kc2 {[%clk 0:00:11]} 41. Kxg2 {[%clk 0:00:09]}  Kxb2 {[%clk 0:00:11]} 42. Kf3 {[%clk 0:00:09]}  Kxc3 {[%clk 0:00:12]} 43. Kxe3 {[%clk 0:00:10]}  Kb3 {[%clk 0:00:12]} 44. Rxh7 {[%clk 0:00:10]}  Kxa3 {[%clk 0:00:11]} 45. Rc7 {[%clk 0:00:10]}  Kb4 {[%clk 0:00:12]} 46. Rb7+ {[%clk 0:00:11]}  Kc3 {[%clk 0:00:11]} 47. Rb5 {[%clk 0:00:11]}  a4 {[%clk 0:00:11]} 48. Rxc5+ {[%clk 0:00:11]}  Kb2 {[%clk 0:00:12]} 49. Re5 {[%clk 0:00:12]} 1-0


[Site "https://www.chess.com"]

[Event "Titled Tuesday Blitz October 31 Early 2023"]
[White "Omelja, Artem"]
[Black "Girinath, P.D.S."]
[WhiteFideId "14119846"]
[BlackFideId "5000572"]
[WhiteElo "2580"]
[BlackElo "2383"]
[Result "1-0"]
[Round "9"]
[TimeControl "180+1"]
[Date "2023.10.31"]
[WhiteClock "0:00:10"]
[BlackClock "0:00:00"]
[Board "59"]

1. e4 {[%clk 0:03:00]}  c5 {[%clk 0:02:56]} 2. Nf3 {[%clk 0:03:00]}  d6 {[%clk 0:02:57]} 3. d4 {[%clk 0:02:59]}  cxd4 {[%clk 0:02:58]} 4. Nxd4 {[%clk 0:03:00]}  Nf6 {[%clk 0:02:58]} 5. Nc3 {[%clk 0:02:57]}  g6 {[%clk 0:02:59]} 6. Be3 {[%clk 0:02:54]}  Bg7 {[%clk 0:02:59]} 7. f3 {[%clk 0:02:53]}  Nc6 {[%clk 0:02:59]} 8. Qd2 {[%clk 0:02:54]}  O-O {[%clk 0:02:58]} 9. Bc4 {[%clk 0:02:51]}  Bd7 {[%clk 0:02:57]} 10. O-O-O {[%clk 0:02:44]}  Rc8 {[%clk 0:02:56]} 11. Bb3 {[%clk 0:02:44]}  Ne5 {[%clk 0:02:56]} 12. h4 {[%clk 0:02:44]}  h5 {[%clk 0:02:46]} 13. g4 {[%clk 0:02:43]}  b5 {[%clk 0:02:22]} 14. g5 {[%clk 0:02:41]}  b4 {[%clk 0:02:12]} 15. Nce2 {[%clk 0:02:24]}  Ne8 {[%clk 0:01:54]} 16. f4 {[%clk 0:02:20]}  Nc4 {[%clk 0:01:41]} 17. Bxc4 {[%clk 0:02:01]}  Rxc4 {[%clk 0:01:42]} 18. f5 {[%clk 0:02:02]}  Nc7 {[%clk 0:00:56]} 19. Nf4 {[%clk 0:01:59]}  Nb5 {[%clk 0:00:53]} 20. Nxb5 {[%clk 0:01:54]}  Bxb5 {[%clk 0:00:53]} 21. fxg6 {[%clk 0:01:52]}  Qa5 {[%clk 0:00:52]} 22. Kb1 {[%clk 0:01:51]}  Rxe4 {[%clk 0:00:39]} 23. Nxh5 {[%clk 0:01:40]}  Bc4 {[%clk 0:00:35]} 24. b3 {[%clk 0:01:35]}  Bc3 {[%clk 0:00:32]} 25. Qc1 {[%clk 0:00:49]}  fxg6 {[%clk 0:00:25]} 26. Ng3 {[%clk 0:00:49]}  Re5 {[%clk 0:00:25]} 27. bxc4 {[%clk 0:00:45]}  Rf3 {[%clk 0:00:15]} 28. Nf1 {[%clk 0:00:45]}  Rff5 {[%clk 0:00:10]} 29. Bd4 {[%clk 0:00:33]}  Qa4 {[%clk 0:00:10]} 30. Bxe5 {[%clk 0:00:30]}  Rxe5 {[%clk 0:00:07]} 31. Rd3 {[%clk 0:00:10]}  Ra5 {[%clk 0:00:00]} 32. a3 {[%clk 0:00:10]} 1-0


[Site "https://www.chess.com"]

[Event "Titled Tuesday Blitz October 31 Early 2023"]
[White "Zhigalko, Sergei"]
[Black "Seresin, Francesco"]
[WhiteFideId "13502956"]
[BlackFideId "886335"]
[WhiteElo "2920"]
[BlackElo "2403"]
[Result "1-0"]
[Round "9"]
[TimeControl "180+1"]
[Date "2023.10.31"]
[WhiteClock "0:02:19"]
[BlackClock "0:01:06"]
[Board "60"]

1. e4 {[%clk 0:02:54]}  d5 {[%clk 0:01:56]} 2. exd5 {[%clk 0:02:54]}  Nf6 {[%clk 0:01:55]} 3. d4 {[%clk 0:02:54]}  Nxd5 {[%clk 0:01:52]} 4. c4 {[%clk 0:02:54]}  Nb6 {[%clk 0:01:52]} 5. Nf3 {[%clk 0:02:54]}  g6 {[%clk 0:01:52]} 6. Nc3 {[%clk 0:02:50]}  Bg7 {[%clk 0:01:47]} 7. c5 {[%clk 0:02:44]}  Nd5 {[%clk 0:01:46]} 8. Bc4 {[%clk 0:02:45]}  c6 {[%clk 0:01:46]} 9. O-O {[%clk 0:02:45]}  O-O {[%clk 0:01:45]} 10. Re1 {[%clk 0:02:45]}  Bg4 {[%clk 0:01:35]} 11. Bg5 {[%clk 0:02:45]}  Re8 {[%clk 0:01:32]} 12. h3 {[%clk 0:02:44]}  Be6 {[%clk 0:01:27]} 13. Rxe6 {[%clk 0:02:36]}  fxe6 {[%clk 0:01:27]} 14. Qe2 {[%clk 0:02:32]}  Qd7 {[%clk 0:01:23]} 15. Re1 {[%clk 0:02:31]}  b5 {[%clk 0:01:23]} 16. Bb3 {[%clk 0:02:30]}  Na6 {[%clk 0:01:20]} 17. Qxe6+ {[%clk 0:02:23]}  Qxe6 {[%clk 0:01:20]} 18. Rxe6 {[%clk 0:02:24]}  Rac8 {[%clk 0:01:06]} 19. Rxc6 {[%clk 0:02:19]} 1-0


[Site "https://www.chess.com"]

[Event "Titled Tuesday Blitz October 31 Early 2023"]
[White "Kosteniuk, Alexandra"]
[Black "Willy, Stephen"]
[WhiteFideId "4128125"]
[BlackFideId "30981468"]
[WhiteElo "2707"]
[BlackElo "2496"]
[Result "1-0"]
[Round "9"]
[TimeControl "180+1"]
[Date "2023.10.31"]
[WhiteClock "0:02:16"]
[BlackClock "0:00:55"]
[Board "61"]

1. Nf3 {[%clk 0:03:00]}  d5 {[%clk 0:02:58]} 2. g3 {[%clk 0:03:01]}  c5 {[%clk 0:02:56]} 3. Bg2 {[%clk 0:03:01]}  Nc6 {[%clk 0:02:57]} 4. d4 {[%clk 0:03:01]}  Bg4 {[%clk 0:02:54]} 5. c4 {[%clk 0:02:52]}  e6 {[%clk 0:02:48]} 6. cxd5 {[%clk 0:02:50]}  exd5 {[%clk 0:02:45]} 7. Ne5 {[%clk 0:02:47]}  Nxe5 {[%clk 0:02:41]} 8. dxe5 {[%clk 0:02:48]}  Be6 {[%clk 0:02:40]} 9. Nc3 {[%clk 0:02:48]}  Ne7 {[%clk 0:02:39]} 10. Bg5 {[%clk 0:02:46]}  Qa5 {[%clk 0:02:12]} 11. O-O {[%clk 0:02:42]}  d4 {[%clk 0:02:01]} 12. Bxb7 {[%clk 0:02:42]}  Rb8 {[%clk 0:01:58]} 13. Ne4 {[%clk 0:02:43]}  Rxb7 {[%clk 0:01:26]} 14. Nd6+ {[%clk 0:02:43]}  Kd7 {[%clk 0:01:26]} 15. Nxb7 {[%clk 0:02:44]}  Qb6 {[%clk 0:01:26]} 16. Qa4+ {[%clk 0:02:40]}  Nc6 {[%clk 0:01:20]} 17. Nd6 {[%clk 0:02:39]}  f6 {[%clk 0:01:16]} 18. Bc1 {[%clk 0:02:18]}  fxe5 {[%clk 0:01:03]} 19. Nc4 {[%clk 0:02:18]}  Qb4 {[%clk 0:00:55]} 20. Nxe5+ {[%clk 0:02:16]} 1-0


[Site "https://www.chess.com"]